[Event "Titled Tuesday Blitz June 28 Late 2022"]
[White "Ambartsumova, Karina"]
[Black "Xu, Yi"]
[WhiteFideId "4166299"]
[BlackFideId "8605564"]
[WhiteElo "2262"]
[BlackElo "2471"]
[Result "0-1"]
[Round "02"]
[TimeControl "180+1"]
[Date "2022.06.28"]
[WhiteClock "0:00:14"]
[BlackClock "0:00:27"]

1. Nf3 {[%clk 0:03:00]}  d5 {[%clk 0:02:59]} 2. d4 {[%clk 0:02:58]}  Nf6 {[%clk 0:02:59]} 3. c4 {[%clk 0:02:58]}  e6 {[%clk 0:02:59]} 4. Nc3 {[%clk 0:02:57]}  c6 {[%clk 0:02:59]} 5. Bg5 {[%clk 0:02:52]}  h6 {[%clk 0:02:58]} 6. Bxf6 {[%clk 0:02:47]}  Qxf6 {[%clk 0:02:57]} 7. e3 {[%clk 0:02:48]}  g6 {[%clk 0:02:57]} 8. Be2 {[%clk 0:02:46]}  Bg7 {[%clk 0:02:56]} 9. O-O {[%clk 0:02:46]}  O-O {[%clk 0:02:56]} 10. Qc2 {[%clk 0:02:46]}  Qe7 {[%clk 0:02:53]} 11. Rad1 {[%clk 0:02:38]}  Nd7 {[%clk 0:02:53]} 12. Rfe1 {[%clk 0:02:38]}  dxc4 {[%clk 0:02:45]} 13. Bxc4 {[%clk 0:02:39]}  b6 {[%clk 0:02:40]} 14. h3 {[%clk 0:02:29]}  Bb7 {[%clk 0:02:40]} 15. Qe2 {[%clk 0:02:29]}  b5 {[%clk 0:02:37]} 16. Bb3 {[%clk 0:02:19]}  a6 {[%clk 0:02:37]} 17. a3 {[%clk 0:02:04]}  c5 {[%clk 0:02:29]} 18. dxc5 {[%clk 0:02:00]}  Nxc5 {[%clk 0:02:23]} 19. Ba2 {[%clk 0:02:01]}  Rfd8 {[%clk 0:02:17]} 20. Nd4 {[%clk 0:01:58]}  Rac8 {[%clk 0:02:15]} 21. Qg4 {[%clk 0:01:48]}  h5 {[%clk 0:02:01]} 22. Qg3 {[%clk 0:01:47]}  Ne4 {[%clk 0:01:52]} 23. Nxe4 {[%clk 0:01:44]}  Bxe4 {[%clk 0:01:53]} 24. Rc1 {[%clk 0:01:23]}  Bf6 {[%clk 0:01:26]} 25. Rxc8 {[%clk 0:00:56]}  Rxc8 {[%clk 0:01:26]} 26. f3 {[%clk 0:00:52]}  Bh4 {[%clk 0:01:10]} 27. Qe5 {[%clk 0:00:47]}  Bxe1 {[%clk 0:01:09]} 28. Nxe6 {[%clk 0:00:31]}  Qxe6 {[%clk 0:00:31]} 29. Bxe6 {[%clk 0:00:32]}  Rc1 {[%clk 0:00:31]} 30. Kh2 {[%clk 0:00:27]}  h4 {[%clk 0:00:29]} 31. Bxf7+ {[%clk 0:00:14]}  Kxf7 {[%clk 0:00:26]} 32. Qf4+ {[%clk 0:00:14]}  Bf5 {[%clk 0:00:27]} 0-1


[Site "https://www.chess.com"]

[Event "Titled Tuesday Blitz June 28 Late 2022"]
[White "Andreikin, Dmitry"]
[Black "Perske, Thore"]
[WhiteFideId "4158814"]
[BlackFideId "12902195"]
[WhiteElo "2736"]
[BlackElo "2315"]
[Result "1-0"]
[Round "02"]
[TimeControl "180+1"]
[Date "2022.06.29"]
[WhiteClock "0:02:09"]
[BlackClock "0:00:29"]

1. d4 {[%clk 0:03:00]}  Nf6 {[%clk 0:02:59]} 2. c4 {[%clk 0:03:01]}  g6 {[%clk 0:03:00]} 3. Nc3 {[%clk 0:03:01]}  Bg7 {[%clk 0:03:00]} 4. e4 {[%clk 0:03:01]}  d6 {[%clk 0:03:00]} 5. h3 {[%clk 0:03:01]}  O-O {[%clk 0:03:00]} 6. Be3 {[%clk 0:03:02]}  Na6 {[%clk 0:03:01]} 7. Nf3 {[%clk 0:03:02]}  e5 {[%clk 0:02:55]} 8. d5 {[%clk 0:03:02]}  Nh5 {[%clk 0:02:50]} 9. Nd2 {[%clk 0:03:01]}  c5 {[%clk 0:02:40]} 10. g3 {[%clk 0:02:59]}  Nc7 {[%clk 0:02:37]} 11. Be2 {[%clk 0:02:58]}  Nf6 {[%clk 0:02:34]} 12. g4 {[%clk 0:02:58]}  Bd7 {[%clk 0:02:27]} 13. h4 {[%clk 0:02:58]}  a6 {[%clk 0:02:22]} 14. g5 {[%clk 0:02:55]}  Nfe8 {[%clk 0:02:18]} 15. a4 {[%clk 0:02:56]}  f5 {[%clk 0:02:08]} 16. f3 {[%clk 0:02:55]}  f4 {[%clk 0:01:48]} 17. Bf2 {[%clk 0:02:55]}  a5 {[%clk 0:01:31]} 18. Nb5 {[%clk 0:02:56]}  h5 {[%clk 0:01:21]} 19. gxh6 {[%clk 0:02:53]}  Bxh6 {[%clk 0:01:21]} 20. Bf1 {[%clk 0:02:52]}  Kh7 {[%clk 0:01:08]} 21. Bh3 {[%clk 0:02:48]}  Bxh3 {[%clk 0:01:07]} 22. Rxh3 {[%clk 0:02:49]}  Qd7 {[%clk 0:01:06]} 23. Rh2 {[%clk 0:02:49]}  Nf6 {[%clk 0:01:06]} 24. Qb3 {[%clk 0:02:47]}  Na6 {[%clk 0:01:02]} 25. O-O-O {[%clk 0:02:46]}  Nb4 {[%clk 0:01:02]} 26. Rg1 {[%clk 0:02:44]}  Rg8 {[%clk 0:01:02]} 27. Kb1 {[%clk 0:02:42]}  Rg7 {[%clk 0:01:02]} 28. Qd1 {[%clk 0:02:41]}  Rag8 {[%clk 0:01:01]} 29. Qf1 {[%clk 0:02:41]}  Rf7 {[%clk 0:00:59]} 30. Qg2 {[%clk 0:02:36]}  Nh5 {[%clk 0:00:53]} 31. Qg4 {[%clk 0:02:32]}  Nf6 {[%clk 0:00:53]} 32. Qe6 {[%clk 0:02:27]}  Rd8 {[%clk 0:00:36]} 33. Nxd6 {[%clk 0:02:16]}  Rff8 {[%clk 0:00:29]} 34. Bxc5 {[%clk 0:02:09]} 1-0


[Site "https://www.chess.com"]

[Event "Titled Tuesday Blitz June 28 Late 2022"]
[White "Araujo Sanchez, Josue"]
[Black "Tomaszewski, Kacper"]
[WhiteFideId "6416896"]
[BlackFideId "1127373"]
[WhiteElo "2719"]
[BlackElo "2439"]
[Result "1-0"]
[Round "02"]
[TimeControl "180+1"]
[Date "2022.06.29"]
[WhiteClock "0:02:36"]
[BlackClock "0:01:39"]

1. Nf3 {[%clk 0:03:00]}  d6 {[%clk 0:03:00]} 2. b3 {[%clk 0:03:00]}  Nf6 {[%clk 0:03:00]} 3. Bb2 {[%clk 0:03:01]}  e6 {[%clk 0:03:00]} 4. e3 {[%clk 0:03:01]}  Nbd7 {[%clk 0:03:01]} 5. c4 {[%clk 0:03:02]}  Be7 {[%clk 0:03:01]} 6. Nc3 {[%clk 0:03:03]}  c6 {[%clk 0:03:02]} 7. Be2 {[%clk 0:03:03]}  Qc7 {[%clk 0:03:02]} 8. O-O {[%clk 0:03:04]}  b6 {[%clk 0:03:03]} 9. d4 {[%clk 0:03:05]}  Bb7 {[%clk 0:03:03]} 10. Rc1 {[%clk 0:03:06]}  O-O {[%clk 0:03:04]} 11. d5 {[%clk 0:03:06]}  exd5 {[%clk 0:03:03]} 12. cxd5 {[%clk 0:03:06]}  c5 {[%clk 0:03:04]} 13. e4 {[%clk 0:03:06]}  a6 {[%clk 0:03:04]} 14. a4 {[%clk 0:03:06]}  Ng4 {[%clk 0:02:59]} 15. Nd2 {[%clk 0:03:05]}  Nge5 {[%clk 0:02:48]} 16. f4 {[%clk 0:03:05]}  Ng6 {[%clk 0:02:48]} 17. Nc4 {[%clk 0:03:02]}  Rfe8 {[%clk 0:02:47]} 18. e5 {[%clk 0:03:02]}  Bf8 {[%clk 0:02:42]} 19. Bg4 {[%clk 0:02:56]}  dxe5 {[%clk 0:02:38]} 20. Bxd7 {[%clk 0:02:55]}  Qxd7 {[%clk 0:02:32]} 21. Nxb6 {[%clk 0:02:55]}  Qd8 {[%clk 0:02:29]} 22. Nxa8 {[%clk 0:02:55]}  Qxa8 {[%clk 0:02:30]} 23. fxe5 {[%clk 0:02:53]}  Nxe5 {[%clk 0:02:27]} 24. Qh5 {[%clk 0:02:54]}  c4 {[%clk 0:02:18]} 25. Rce1 {[%clk 0:02:49]}  g6 {[%clk 0:02:15]} 26. Qh4 {[%clk 0:02:48]}  Bc5+ {[%clk 0:02:08]} 27. Kh1 {[%clk 0:02:48]}  Nd3 {[%clk 0:02:07]} 28. Rxe8+ {[%clk 0:02:41]}  Qxe8 {[%clk 0:02:07]} 29. Ne4 {[%clk 0:02:41]}  Qe7 {[%clk 0:01:39]} 30. Nf6+ {[%clk 0:02:37]}  Kf8 {[%clk 0:01:39]} 31. Qh6# {[%clk 0:02:36]} 1-0


[Site "https://www.chess.com"]

[Event "Titled Tuesday Blitz June 28 Late 2022"]
[White "Balint, Vilmos"]
[Black "Averjanov, Alexey"]
[WhiteFideId "718050"]
[BlackFideId "14109867"]
[WhiteElo "2059"]
[BlackElo "2685"]
[Result "0-1"]
[Round "02"]
[TimeControl "180+1"]
[Date "2022.06.29"]
[WhiteClock "0:00:25"]
[BlackClock "0:00:17"]

1. Nf3 {[%clk 0:03:00]}  d5 {[%clk 0:02:59]} 2. g3 {[%clk 0:03:01]}  Nf6 {[%clk 0:02:57]} 3. Bg2 {[%clk 0:03:01]}  e6 {[%clk 0:02:58]} 4. d4 {[%clk 0:03:01]}  Be7 {[%clk 0:02:58]} 5. O-O {[%clk 0:03:01]}  O-O {[%clk 0:02:58]} 6. c4 {[%clk 0:03:02]}  c6 {[%clk 0:02:58]} 7. Nc3 {[%clk 0:03:01]}  Nbd7 {[%clk 0:02:58]} 8. Qb3 {[%clk 0:02:57]}  b6 {[%clk 0:02:57]} 9. Bg5 {[%clk 0:02:47]}  Bb7 {[%clk 0:02:56]} 10. Rac1 {[%clk 0:02:46]}  Rc8 {[%clk 0:02:56]} 11. e3 {[%clk 0:02:42]}  c5 {[%clk 0:02:56]} 12. Bxf6 {[%clk 0:02:39]}  Nxf6 {[%clk 0:02:54]} 13. dxc5 {[%clk 0:02:39]}  Bxc5 {[%clk 0:02:53]} 14. cxd5 {[%clk 0:02:38]}  Nxd5 {[%clk 0:02:52]} 15. Rfd1 {[%clk 0:02:38]}  Qe7 {[%clk 0:02:48]} 16. Ne5 {[%clk 0:02:29]}  Nxc3 {[%clk 0:02:45]} 17. Bxb7 {[%clk 0:02:22]}  Qxb7 {[%clk 0:02:46]} 18. Rxc3 {[%clk 0:02:19]}  Rfd8 {[%clk 0:02:43]} 19. Rcd3 {[%clk 0:02:18]}  Rxd3 {[%clk 0:02:40]} 20. Qxd3 {[%clk 0:02:16]}  Be7 {[%clk 0:02:27]} 21. Qd7 {[%clk 0:02:12]}  Qxd7 {[%clk 0:02:27]} 22. Rxd7 {[%clk 0:02:11]}  Bf6 {[%clk 0:02:24]} 23. Nxf7 {[%clk 0:02:07]}  a5 {[%clk 0:02:24]} 24. b3 {[%clk 0:02:06]}  Rc2 {[%clk 0:02:22]} 25. a4 {[%clk 0:01:50]}  Rc3 {[%clk 0:02:20]} 26. Nd8 {[%clk 0:01:40]}  Bxd8 {[%clk 0:02:03]} 27. Rxd8+ {[%clk 0:01:40]}  Kf7 {[%clk 0:02:03]} 28. Rd7+ {[%clk 0:01:41]}  Kf6 {[%clk 0:02:03]} 29. e4 {[%clk 0:01:36]}  Rxb3 {[%clk 0:02:01]} 30. e5+ {[%clk 0:01:36]}  Kxe5 {[%clk 0:01:33]} 31. Rxg7 {[%clk 0:01:35]}  Rb4 {[%clk 0:01:32]} 32. Rxh7 {[%clk 0:01:24]}  Rxa4 {[%clk 0:01:32]} 33. Rb7 {[%clk 0:01:25]}  Rb4 {[%clk 0:01:29]} 34. h4 {[%clk 0:01:25]}  a4 {[%clk 0:01:02]} 35. h5 {[%clk 0:01:23]}  a3 {[%clk 0:00:54]} 36. h6 {[%clk 0:01:23]}  Ra4 {[%clk 0:00:47]} 37. h7 {[%clk 0:01:07]}  Ra8 {[%clk 0:00:46]} 38. Ra7 {[%clk 0:01:08]}  Rh8 {[%clk 0:00:44]} 39. Kg2 {[%clk 0:00:59]}  a2 {[%clk 0:00:34]} 40. Kf3 {[%clk 0:00:54]}  Rxh7 {[%clk 0:00:31]} 41. Rxa2 {[%clk 0:00:54]}  b5 {[%clk 0:00:29]} 42. Rb2 {[%clk 0:00:48]}  Rb7 {[%clk 0:00:29]} 43. Ke3 {[%clk 0:00:48]}  b4 {[%clk 0:00:28]} 44. f4+ {[%clk 0:00:47]}  Kf5 {[%clk 0:00:27]} 45. Kf3 {[%clk 0:00:46]}  b3 {[%clk 0:00:28]} 46. g4+ {[%clk 0:00:46]}  Kf6 {[%clk 0:00:28]} 47. Ke4 {[%clk 0:00:46]}  Rb4+ {[%clk 0:00:28]} 48. Ke3 {[%clk 0:00:46]}  Kg6 {[%clk 0:00:25]} 49. Kf3 {[%clk 0:00:46]}  Kf6 {[%clk 0:00:24]} 50. Kg3 {[%clk 0:00:44]}  Kf7 {[%clk 0:00:24]} 51. g5 {[%clk 0:00:43]}  Kg6 {[%clk 0:00:22]} 52. Kg4 {[%clk 0:00:26]}  e5 {[%clk 0:00:22]} 53. Kg3 {[%clk 0:00:27]}  exf4+ {[%clk 0:00:20]} 54. Kf3 {[%clk 0:00:27]}  Kxg5 {[%clk 0:00:19]} 55. Rg2+ {[%clk 0:00:25]}  Kf5 {[%clk 0:00:19]} 56. Rb2 {[%clk 0:00:26]}  Rb5 {[%clk 0:00:19]} 57. Kf2 {[%clk 0:00:24]}  Kg4 {[%clk 0:00:19]} 58. Kg2 {[%clk 0:00:24]}  f3+ {[%clk 0:00:19]} 59. Kf2 {[%clk 0:00:25]}  Kf4 {[%clk 0:00:20]} 60. Rb1 {[%clk 0:00:24]}  b2 {[%clk 0:00:20]} 61. Kf1 {[%clk 0:00:25]}  Kg3 {[%clk 0:00:19]} 62. Ke1 {[%clk 0:00:26]}  Kg2 {[%clk 0:00:17]} 63. Kd2 {[%clk 0:00:25]}  f2 {[%clk 0:00:17]} 0-1


[Site "https://www.chess.com"]

[Event "Titled Tuesday Blitz June 28 Late 2022"]
[White "Barp, Alberto"]
[Black "Glavina, Pablo"]
[WhiteFideId "872555"]
[BlackFideId "100234"]
[WhiteElo "2229"]
[BlackElo "2369"]
[Result "1/2-1/2"]
[Round "02"]
[TimeControl "180+1"]
[Date "2022.06.29"]
[WhiteClock "0:00:13"]
[BlackClock "0:00:37"]

1. d4 {[%clk 0:03:00]}  d5 {[%clk 0:02:56]} 2. Nf3 {[%clk 0:02:55]}  Nf6 {[%clk 0:02:54]} 3. c4 {[%clk 0:02:53]}  c6 {[%clk 0:02:54]} 4. e3 {[%clk 0:02:48]}  a6 {[%clk 0:02:49]} 5. Nc3 {[%clk 0:02:45]}  b5 {[%clk 0:02:45]} 6. b3 {[%clk 0:02:36]}  Bg4 {[%clk 0:02:41]} 7. h3 {[%clk 0:02:35]}  Bxf3 {[%clk 0:02:35]} 8. Qxf3 {[%clk 0:02:36]}  e6 {[%clk 0:02:36]} 9. Bd2 {[%clk 0:02:36]}  Bb4 {[%clk 0:02:32]} 10. a3 {[%clk 0:02:35]}  Bxc3 {[%clk 0:02:29]} 11. Bxc3 {[%clk 0:02:36]}  Ne4 {[%clk 0:02:28]} 12. Rc1 {[%clk 0:02:09]}  bxc4 {[%clk 0:02:18]} 13. bxc4 {[%clk 0:01:59]}  Nxc3 {[%clk 0:02:18]} 14. Rxc3 {[%clk 0:02:00]}  Qa5 {[%clk 0:02:18]} 15. Kd2 {[%clk 0:01:58]}  Nd7 {[%clk 0:02:18]} 16. Bd3 {[%clk 0:01:52]}  Rb8 {[%clk 0:02:14]} 17. Rb1 {[%clk 0:01:49]}  Rxb1 {[%clk 0:02:13]} 18. Bxb1 {[%clk 0:01:50]}  O-O {[%clk 0:02:14]} 19. Qd1 {[%clk 0:01:49]}  Rb8 {[%clk 0:02:13]} 20. Qc1 {[%clk 0:01:49]}  Nf6 {[%clk 0:02:09]} 21. Ke2 {[%clk 0:01:46]}  g6 {[%clk 0:02:05]} 22. f3 {[%clk 0:01:40]}  Kg7 {[%clk 0:02:00]} 23. Bd3 {[%clk 0:01:39]}  Qa4 {[%clk 0:01:54]} 24. c5 {[%clk 0:01:36]}  Qa5 {[%clk 0:01:40]} 25. Qc2 {[%clk 0:01:33]}  Qc7 {[%clk 0:01:39]} 26. Kf2 {[%clk 0:01:32]}  Qh2 {[%clk 0:01:38]} 27. Rb3 {[%clk 0:01:30]}  Rxb3 {[%clk 0:01:35]} 28. Qxb3 {[%clk 0:01:31]}  Nh5 {[%clk 0:01:35]} 29. Qb7 {[%clk 0:01:25]}  Ng3 {[%clk 0:01:33]} 30. Qb2 {[%clk 0:00:51]}  a5 {[%clk 0:01:30]} 31. Qd2 {[%clk 0:00:47]}  h5 {[%clk 0:01:27]} 32. e4 {[%clk 0:00:44]}  h4 {[%clk 0:01:23]} 33. e5 {[%clk 0:00:39]}  Nh5 {[%clk 0:01:18]} 34. Qg5 {[%clk 0:00:36]}  Qh1 {[%clk 0:01:04]} 35. Qxh4 {[%clk 0:00:28]}  Qc1 {[%clk 0:01:05]} 36. a4 {[%clk 0:00:22]}  Qd2+ {[%clk 0:00:56]} 37. Be2 {[%clk 0:00:23]}  Nf4 {[%clk 0:00:56]} 38. Qf6+ {[%clk 0:00:23]}  Kg8 {[%clk 0:00:56]} 39. Qd8+ {[%clk 0:00:23]}  Kh7 {[%clk 0:00:56]} 40. Qh4+ {[%clk 0:00:23]}  Kg7 {[%clk 0:00:36]} 41. Qf6+ {[%clk 0:00:23]}  Kg8 {[%clk 0:00:36]} 42. Qd8+ {[%clk 0:00:22]}  Kg7 {[%clk 0:00:37]} 43. Qf6+ {[%clk 0:00:13]} 1/2-1/2


[Site "https://www.chess.com"]

[Event "Titled Tuesday Blitz June 28 Late 2022"]
[White "Barria Zuniga, Daniel"]
[Black "Gaehwiler, Gabriel"]
[WhiteFideId "3400816"]
[BlackFideId "1314530"]
[WhiteElo "2414"]
[BlackElo "2383"]
[Result "1-0"]
[Round "02"]
[TimeControl "180+1"]
[Date "2022.06.28"]
[WhiteClock "0:00:50"]
[BlackClock "0:00:17"]

1. d4 {[%clk 0:03:00]}  Nf6 {[%clk 0:02:58]} 2. c4 {[%clk 0:03:01]}  g6 {[%clk 0:02:58]} 3. Nc3 {[%clk 0:03:00]}  Bg7 {[%clk 0:02:58]} 4. e4 {[%clk 0:03:00]}  O-O {[%clk 0:02:59]} 5. Be2 {[%clk 0:03:01]}  d6 {[%clk 0:02:59]} 6. Nf3 {[%clk 0:03:01]}  e5 {[%clk 0:02:59]} 7. d5 {[%clk 0:03:02]}  a5 {[%clk 0:02:59]} 8. Bg5 {[%clk 0:03:02]}  h6 {[%clk 0:02:55]} 9. Bh4 {[%clk 0:03:02]}  Na6 {[%clk 0:02:52]} 10. Nd2 {[%clk 0:03:01]}  Qe8 {[%clk 0:02:48]} 11. a3 {[%clk 0:03:00]}  Nc5 {[%clk 0:02:29]} 12. b4 {[%clk 0:02:51]}  axb4 {[%clk 0:02:29]} 13. axb4 {[%clk 0:02:52]}  Rxa1 {[%clk 0:02:29]} 14. Qxa1 {[%clk 0:02:52]}  Ncxe4 {[%clk 0:02:30]} 15. Ndxe4 {[%clk 0:02:51]}  Nxe4 {[%clk 0:02:30]} 16. Nxe4 {[%clk 0:02:51]}  f5 {[%clk 0:02:30]} 17. Qa5 {[%clk 0:01:59]}  Qf7 {[%clk 0:01:16]} 18. Nxd6 {[%clk 0:01:43]}  cxd6 {[%clk 0:01:15]} 19. Bd8 {[%clk 0:01:43]}  e4 {[%clk 0:01:06]} 20. O-O {[%clk 0:01:35]}  f4 {[%clk 0:01:05]} 21. f3 {[%clk 0:01:24]}  exf3 {[%clk 0:00:55]} 22. Bxf3 {[%clk 0:01:22]}  Bf5 {[%clk 0:00:54]} 23. Bc7 {[%clk 0:01:07]}  Bd4+ {[%clk 0:00:49]} 24. Kh1 {[%clk 0:01:06]}  Be5 {[%clk 0:00:29]} 25. c5 {[%clk 0:01:04]}  Qd7 {[%clk 0:00:23]} 26. c6 {[%clk 0:00:59]}  Qc8 {[%clk 0:00:22]} 27. b5 {[%clk 0:00:58]}  Bg4 {[%clk 0:00:18]} 28. cxb7 {[%clk 0:00:56]}  Qxb7 {[%clk 0:00:18]} 29. Bxg4 {[%clk 0:00:55]}  Ra8 {[%clk 0:00:17]} 30. Qb6 {[%clk 0:00:50]} 1-0


[Site "https://www.chess.com"]

[Event "Titled Tuesday Blitz June 28 Late 2022"]
[White "Bekturov, Tamerlan"]
[Black "Ipek, Egehan"]
[WhiteFideId "13710184"]
[BlackFideId "44523793"]
[WhiteElo "2702"]
[BlackElo "2366"]
[Result "1-0"]
[Round "02"]
[TimeControl "180+1"]
[Date "2022.06.29"]
[WhiteClock "0:01:05"]
[BlackClock "0:00:02"]

1. d4 {[%clk 0:02:47]}  d5 {[%clk 0:02:59]} 2. c4 {[%clk 0:02:46]}  c6 {[%clk 0:03:00]} 3. Nf3 {[%clk 0:02:45]}  Nf6 {[%clk 0:03:00]} 4. Qc2 {[%clk 0:02:45]}  e6 {[%clk 0:02:55]} 5. g3 {[%clk 0:02:45]}  Nbd7 {[%clk 0:02:54]} 6. Bg2 {[%clk 0:02:45]}  Be7 {[%clk 0:02:54]} 7. O-O {[%clk 0:02:46]}  O-O {[%clk 0:02:55]} 8. Nbd2 {[%clk 0:02:45]}  b6 {[%clk 0:02:55]} 9. e4 {[%clk 0:02:45]}  Bb7 {[%clk 0:02:55]} 10. cxd5 {[%clk 0:02:44]}  cxd5 {[%clk 0:02:54]} 11. e5 {[%clk 0:02:44]}  Ne8 {[%clk 0:02:53]} 12. Re1 {[%clk 0:02:43]}  Rc8 {[%clk 0:02:50]} 13. Qd1 {[%clk 0:02:41]}  Nc7 {[%clk 0:02:49]} 14. h4 {[%clk 0:02:39]}  f6 {[%clk 0:02:37]} 15. Nf1 {[%clk 0:02:24]}  fxe5 {[%clk 0:02:37]} 16. Nxe5 {[%clk 0:02:25]}  Nxe5 {[%clk 0:02:36]} 17. Rxe5 {[%clk 0:02:24]}  Bf6 {[%clk 0:02:34]} 18. Re1 {[%clk 0:02:16]}  Nb5 {[%clk 0:01:44]} 19. Be3 {[%clk 0:02:16]}  Nd6 {[%clk 0:01:28]} 20. Bh3 {[%clk 0:02:13]}  Re8 {[%clk 0:01:04]} 21. Nh2 {[%clk 0:02:10]}  Nc4 {[%clk 0:00:57]} 22. Bc1 {[%clk 0:02:01]}  Rc6 {[%clk 0:00:47]} 23. Ng4 {[%clk 0:01:52]}  Bc8 {[%clk 0:00:46]} 24. Nxf6+ {[%clk 0:01:51]}  Qxf6 {[%clk 0:00:47]} 25. Bg5 {[%clk 0:01:50]}  Qf7 {[%clk 0:00:46]} 26. b3 {[%clk 0:01:46]}  Nd6 {[%clk 0:00:46]} 27. Rc1 {[%clk 0:01:46]}  Rxc1 {[%clk 0:00:45]} 28. Qxc1 {[%clk 0:01:46]}  Ne4 {[%clk 0:00:44]} 29. Be3 {[%clk 0:01:46]}  Rf8 {[%clk 0:00:41]} 30. Re2 {[%clk 0:01:41]}  Ba6 {[%clk 0:00:32]} 31. Rc2 {[%clk 0:01:23]}  Bd3 {[%clk 0:00:12]} 32. Rc7 {[%clk 0:01:22]}  Qf3 {[%clk 0:00:12]} 33. Bxe6+ {[%clk 0:01:15]}  Kh8 {[%clk 0:00:12]} 34. Rc8 {[%clk 0:01:10]}  g6 {[%clk 0:00:06]} 35. Rxf8+ {[%clk 0:01:09]}  Qxf8 {[%clk 0:00:07]} 36. Bxd5 {[%clk 0:01:07]}  Nd6 {[%clk 0:00:05]} 37. Bf4 {[%clk 0:01:05]}  Nf5 {[%clk 0:00:05]} 38. Be5+ {[%clk 0:01:06]}  Ng7 {[%clk 0:00:03]} 39. Qc7 {[%clk 0:01:06]}  a5 {[%clk 0:00:02]} 40. Qxb6 {[%clk 0:01:05]}  h6 {[%clk 0:00:02]} 41. Qxg6 {[%clk 0:01:05]} 1-0


[Site "https://www.chess.com"]

[Event "Titled Tuesday Blitz June 28 Late 2022"]
[White "Brodowski, Piotr"]
[Black "Hakobyan, Aram"]
[WhiteFideId "1124480"]
[BlackFideId "13306677"]
[WhiteElo "2431"]
[BlackElo "2557"]
[Result "0-1"]
[Round "02"]
[TimeControl "180+1"]
[Date "2022.06.28"]
[WhiteClock "0:00:03"]
[BlackClock "0:00:12"]

1. c4 {[%clk 0:03:00]}  g6 {[%clk 0:02:58]} 2. Nc3 {[%clk 0:02:59]}  Bg7 {[%clk 0:02:59]} 3. d4 {[%clk 0:02:58]}  d6 {[%clk 0:02:59]} 4. Nf3 {[%clk 0:02:57]}  Nc6 {[%clk 0:02:59]} 5. g3 {[%clk 0:02:57]}  Bd7 {[%clk 0:02:58]} 6. Bg2 {[%clk 0:02:51]}  Qc8 {[%clk 0:02:55]} 7. h3 {[%clk 0:02:50]}  Nf6 {[%clk 0:02:55]} 8. Be3 {[%clk 0:02:46]}  O-O {[%clk 0:02:52]} 9. Qd2 {[%clk 0:02:42]}  e5 {[%clk 0:02:52]} 10. d5 {[%clk 0:02:38]}  Ne7 {[%clk 0:02:51]} 11. g4 {[%clk 0:02:18]}  Ne8 {[%clk 0:02:49]} 12. g5 {[%clk 0:01:55]}  Nf5 {[%clk 0:02:46]} 13. h4 {[%clk 0:01:49]}  Nxe3 {[%clk 0:02:45]} 14. Qxe3 {[%clk 0:01:47]}  f5 {[%clk 0:02:46]} 15. gxf6 {[%clk 0:01:32]}  Nxf6 {[%clk 0:02:44]} 16. Ne4 {[%clk 0:01:23]}  Nxe4 {[%clk 0:02:43]} 17. Qxe4 {[%clk 0:01:23]}  Rf4 {[%clk 0:02:44]} 18. Qc2 {[%clk 0:01:23]}  Qf8 {[%clk 0:02:37]} 19. Ng5 {[%clk 0:00:46]}  Rxf2 {[%clk 0:01:46]} 20. Bf3 {[%clk 0:00:38]}  Rxf3 {[%clk 0:01:46]} 21. Nxf3 {[%clk 0:00:16]}  e4 {[%clk 0:01:37]} 22. Ng5 {[%clk 0:00:14]}  Qf4 {[%clk 0:01:34]} 23. Qxe4 {[%clk 0:00:11]}  Qg3+ {[%clk 0:01:33]} 24. Kd2 {[%clk 0:00:11]}  Re8 {[%clk 0:01:34]} 25. Qf3 {[%clk 0:00:11]}  Qxf3 {[%clk 0:01:27]} 26. Nxf3 {[%clk 0:00:10]}  Bf5 {[%clk 0:01:26]} 27. Rae1 {[%clk 0:00:09]}  Bxb2 {[%clk 0:01:25]} 28. e4 {[%clk 0:00:05]}  Rxe4 {[%clk 0:01:16]} 29. Rxe4 {[%clk 0:00:05]}  Bxe4 {[%clk 0:01:17]} 30. Ke3 {[%clk 0:00:05]}  Bf5 {[%clk 0:01:10]} 31. Nd4 {[%clk 0:00:05]}  Bxd4+ {[%clk 0:01:06]} 32. Kxd4 {[%clk 0:00:06]}  b6 {[%clk 0:01:06]} 33. Re1 {[%clk 0:00:06]}  Kf7 {[%clk 0:01:07]} 34. Ke3 {[%clk 0:00:07]}  h6 {[%clk 0:01:06]} 35. Kf4 {[%clk 0:00:07]}  Bd7 {[%clk 0:01:03]} 36. a3 {[%clk 0:00:07]}  Kf6 {[%clk 0:01:04]} 37. Rf1 {[%clk 0:00:06]}  g5+ {[%clk 0:01:03]} 38. hxg5+ {[%clk 0:00:06]}  hxg5+ {[%clk 0:01:04]} 39. Ke4+ {[%clk 0:00:06]}  Ke7 {[%clk 0:00:59]} 40. Rg1 {[%clk 0:00:06]}  g4 {[%clk 0:00:57]} 41. Kf4 {[%clk 0:00:05]}  Bc8 {[%clk 0:00:57]} 42. Rh1 {[%clk 0:00:06]}  Ba6 {[%clk 0:00:52]} 43. Rc1 {[%clk 0:00:04]}  Kf6 {[%clk 0:00:50]} 44. Rc3 {[%clk 0:00:04]}  g3 {[%clk 0:00:41]} 45. Rxg3 {[%clk 0:00:04]}  Bxc4 {[%clk 0:00:41]} 46. Ke4 {[%clk 0:00:05]}  Ke7 {[%clk 0:00:31]} 47. Rg7+ {[%clk 0:00:04]}  Kd8 {[%clk 0:00:32]} 48. Kd4 {[%clk 0:00:04]}  b5 {[%clk 0:00:32]} 49. Rg8+ {[%clk 0:00:04]}  Kd7 {[%clk 0:00:31]} 50. Ra8 {[%clk 0:00:04]}  Bb3 {[%clk 0:00:20]} 51. Rxa7 {[%clk 0:00:04]}  Kc8 {[%clk 0:00:21]} 52. Ra8+ {[%clk 0:00:05]}  Kb7 {[%clk 0:00:21]} 53. Rh8 {[%clk 0:00:06]}  Ba2 {[%clk 0:00:20]} 54. Rh7 {[%clk 0:00:06]}  Kb6 {[%clk 0:00:20]} 55. Rh2 {[%clk 0:00:06]}  Bb3 {[%clk 0:00:20]} 56. Rb2 {[%clk 0:00:07]}  Ba4 {[%clk 0:00:19]} 57. Rb4 {[%clk 0:00:07]}  Ka5 {[%clk 0:00:18]} 58. Kc3 {[%clk 0:00:07]}  Kb6 {[%clk 0:00:19]} 59. Kd4 {[%clk 0:00:06]}  Bd1 {[%clk 0:00:18]} 60. Kc3 {[%clk 0:00:05]}  Kc5 {[%clk 0:00:17]} 61. Rd4 {[%clk 0:00:05]}  Bf3 {[%clk 0:00:17]} 62. Rf4 {[%clk 0:00:06]}  Bxd5 {[%clk 0:00:18]} 63. a4 {[%clk 0:00:07]}  bxa4 {[%clk 0:00:17]} 64. Rxa4 {[%clk 0:00:07]}  Bc6 {[%clk 0:00:17]} 65. Ra5+ {[%clk 0:00:08]}  Bb5 {[%clk 0:00:18]} 66. Ra7 {[%clk 0:00:08]}  c6 {[%clk 0:00:18]} 67. Rg7 {[%clk 0:00:08]}  d5 {[%clk 0:00:18]} 68. Rg5 {[%clk 0:00:08]}  Be2 {[%clk 0:00:18]} 69. Re5 {[%clk 0:00:07]}  Bc4 {[%clk 0:00:19]} 70. Rg5 {[%clk 0:00:07]}  Kb5 {[%clk 0:00:18]} 71. Rg4 {[%clk 0:00:07]}  c5 {[%clk 0:00:16]} 72. Rf4 {[%clk 0:00:07]}  Be2 {[%clk 0:00:16]} 73. Rh4 {[%clk 0:00:07]}  Bf3 {[%clk 0:00:15]} 74. Rf4 {[%clk 0:00:07]}  Be4 {[%clk 0:00:16]} 75. Kd2 {[%clk 0:00:07]}  Kc4 {[%clk 0:00:15]} 76. Ke3 {[%clk 0:00:08]}  Kc3 {[%clk 0:00:15]} 77. Rf8 {[%clk 0:00:08]}  Bh1 {[%clk 0:00:11]} 78. Rc8 {[%clk 0:00:08]}  d4+ {[%clk 0:00:11]} 79. Ke2 {[%clk 0:00:08]}  c4 {[%clk 0:00:11]} 80. Kd1 {[%clk 0:00:06]}  d3 {[%clk 0:00:10]} 81. Rb8 {[%clk 0:00:05]}  Bf3+ {[%clk 0:00:10]} 82. Ke1 {[%clk 0:00:02]}  d2+ {[%clk 0:00:11]} 83. Kf2 {[%clk 0:00:03]}  d1=Q {[%clk 0:00:12]} 0-1


[Site "https://www.chess.com"]